bitfinex-derivatives/quotes_ETHF0:USTF0_20260201
["timestamp","ask_amount","ask_price","bid_price","bid_amount"]
[1769909294615,6.59477896,2447.7,2445.6,2.76792309]
[1769909294812,2.91077896,2447.4,2445.6,2.76792309]
[1769909295011,0.20457,2446.7,2445.6,2.76792309]
[1769909295412,0.20457,2446.7,2445.7,2.76792309]
[1769909295715,0.20776591,2446.7,2445.7,2.76792309]
[1769909296309,2.91397487,2446.7,2445.7,2.76792309]
[1769909297010,0.00319591,2446.7,2445.7,2.76792309]
[1769909297414,0.20776591,2446.7,2445.7,2.76792309]
[1769909298515,0.20458,2446.6,2445.7,2.76792309]
[1769909300215,0.20458,2446.5,2445.7,2.76792309]
[1769909301113,0.20458,2446.5,2445.9,2.76792309]
[1769909303916,0.00319591,2446.7,2445.9,2.76792309]
[1769909304118,0.00319591,2446.7,2445.9,5.18481405]
[1769909304321,0.20458,2446.5,2446.0,2.76792309]
[1769909304913,0.00319591,2446.7,2446.0,2.76792309]
[1769909305113,0.20458,2446.5,2446.1,2.76792309]
[1769909305313,0.00319591,2446.7,2446.2,2.41689096]
[1769909305513,0.20455,2447.0,2446.4,2.76792309]
[1769909306214,0.41458666,2447.7,2446.6,2.76792309]
[1769909306414,0.20454,2447.1,2446.6,2.76792309]
[1769909306609,0.20455,2446.9,2446.5,5.18481405]
[1769909306815,0.20455,2446.9,2446.5,2.41689096]
[1769909307013,0.20458,2446.6,2446.2,2.76792309]
[1769909308418,0.20458,2446.6,2445.8,4.90251278]
[1769909308419,0.20458,2446.6,2445.9,3.6133406]
[1769909308715,0.20458,2446.6,2446.0,4.26627433]
[1769909308918,0.20458,2446.6,2446.1,4.26627433]
[1769909309119,0.20458,2446.6,2446.2,4.27095512]
[1769909309417,0.20458,2446.6,2446.0,3.6133406]
[1769909309620,0.20458,2446.6,2446.1,4.2710173]
[1769909309819,0.20458,2446.6,2446.2,4.2710173]
[1769909310019,0.20458,2446.6,2446.0,3.6133406]
[1769909310320,0.20458,2446.6,2446.2,2.76792309]
[1769909311516,2.91077896,2447.5,2446.2,2.76792309]
[1769909311918,0.20456,2446.8,2446.2,2.76792309]
[1769909312312,0.20456,2446.8,2446.4,2.76792309]
[1769909312923,2.91077896,2447.3,2446.4,2.76792309]
[1769909313318,0.20457,2446.7,2446.4,2.76792309]
[1769909314826,2.91077896,2447.1,2446.4,2.76792309]
[1769909315713,0.20458,2446.6,2446.1,3.6133406]
[1769909315918,0.20458,2446.6,2446.2,4.24445988]
[1769909316117,0.20458,2446.6,2446.3,4.24445988]
[1769909316312,0.20458,2446.6,2446.1,3.6133406]
[1769909316527,0.20461,2446.2,2445.7,3.6133406]
[1769909316728,0.20463,2446.0,2445.4,4.9076761]
[1769909316921,2.91077896,2446.5,2445.4,4.9076761]
[1769909317122,0.20459,2446.5,2445.4,0.00516332]
[1769909317323,0.20459,2446.5,2445.5,4.90251278]
[1769909317517,0.20459,2446.4,2445.5,4.90251278]
[1769909317723,0.20459,2446.4,2445.6,2.57748556]
[1769909320226,0.20457,2446.7,2445.7,2.57748556]
[1769909320428,0.20457,2446.7,2445.9,2.57748556]
[1769909321631,0.20457,2446.7,2446.1,2.57748556]
[1769909321928,2.68399695,2447.5,2446.1,2.57748556]
[1769909323126,0.20454,2447.0,2446.1,2.57748556]
[1769909325626,0.40160757,2447.7,2446.4,2.7087629]
[1769909326023,0.20449,2447.6,2446.8,2.7087629]
[1769909326228,0.20449,2447.6,2447.0,2.7087629]
[1769909327032,0.20449,2447.6,2447.1,2.7087629]
[1769909327232,2.53874453,2448.4,2447.1,2.7087629]
[1769909327426,12.86634336,2448.9,2447.1,2.7087629]
[1769909327427,2.53874453,2448.2,2447.1,2.7087629]
[1769909328130,0.20447,2447.9,2447.1,2.7087629]
[1769909328532,0.20447,2447.9,2447.3,2.7087629]
[1769909328735,0.00312905,2448.2,2447.3,2.71286483]
[1769909330032,0.41154689,2448.8,2447.5,2.7087629]
[1769909330229,0.20438,2449.0,2447.7,2.7087629]
[1769909330429,0.2044,2448.7,2447.9,2.7087629]
[1769909331032,0.20883187,2448.7,2447.9,2.7087629]
[1769909331735,2.5431764,2448.7,2447.6,2.7087629]
[1769909332128,2.53874453,2448.3,2447.3,0.00410193]
[1769909332327,0.20448,2447.8,2447.3,0.00410193]
[1769909333030,0.20448,2447.7,2447.3,0.00410193]
[1769909333232,2.74322453,2447.7,2446.9,3.682]
[1769909333635,2.53874453,2447.7,2446.9,3.682]
[1769909334041,0.2045,2447.5,2446.9,6.3907629]
[1769909334337,0.2045,2447.5,2447.0,2.7087629]
[1769909334934,0.07555773,2448.7,2447.0,2.7087629]
[1769909334935,2.53874453,2448.6,2447.0,2.7087629]
[1769909335140,0.20446,2448.0,2447.0,2.7087629]
[1769909339437,0.00443187,2448.7,2447.0,2.7087629]
[1769909339637,0.00443187,2448.7,2447.2,2.7087629]
[1769909339835,0.00443187,2448.7,2447.3,6.8137629]
[1769909340037,0.00443187,2448.7,2447.5,2.7087629]
[1769909340542,0.40508505,2449.3,2447.6,2.7087629]
[1769909340839,0.40508505,2449.3,2447.5,13.18799255]
[1769909340840,0.20435,2449.3,2447.8,2.7087629]
[1769909341043,2.53874453,2448.9,2448.0,2.7087629]
[1769909341239,0.20439,2448.8,2448.0,2.7087629]
[1769909341536,0.04074398,2448.4,2448.0,2.7087629]
[1769909341741,0.20443,2448.4,2447.7,5.9057629]
[1769909342137,2.53874453,2448.5,2447.4,2.7087629]
[1769909342442,0.20445,2448.1,2447.4,2.7087629]
[1769909343237,0.20441,2448.6,2447.4,2.7087629]
[1769909344947,2.53874453,2448.6,2447.4,2.7087629]
[1769909345146,0.20444,2448.3,2447.5,2.7087629]
[1769909346549,0.00383113,2448.8,2447.5,2.7087629]
[1769909346747,0.20822113,2448.8,2447.5,2.7087629]
[1769909347045,0.20822113,2448.8,2447.6,2.569307]
[1769909350245,0.20822113,2448.8,2447.7,2.569307]
[1769909351345,0.20446,2448.1,2447.4,2.569307]
[1769909354755,2.5356166,2448.3,2447.1,3.98305662]
[1769909354954,0.20449,2447.6,2446.9,9.23576147]
[1769909355254,0.20449,2447.6,2447.0,3.98305662]
[1769909356050,0.20449,2447.6,2446.9,3.98781809]
[1769909356551,2.5356166,2449.4,2447.4,0.2045]
[1769909356855,2.5356166,2449.4,2448.1,2.569307]
[1769909357049,2.5356166,2449.2,2448.3,2.569307]
[1769909357350,0.20434,2449.4,2448.4,2.569307]
[1769909357555,0.20909103,2449.4,2448.4,2.569307]
[1769909357955,2.74470763,2449.4,2448.4,2.569307]
[1769909358551,2.7399666,2449.3,2448.4,2.569307]
[1769909359454,0.20435,2449.3,2448.4,2.569307]
[1769909360353,0.20435,2449.3,2448.4,8.408307]
[1769909360556,0.20435,2449.3,2448.5,2.569307]
[1769909361257,0.07107952,2450.3,2448.4,5.839]
[1769909361258,2.5356166,2451.0,2449.3,2.45152922]
[1769909361453,2.5356166,2451.0,2449.5,2.45152922]
[1769909361659,2.5356166,2451.0,2449.7,2.45152922]
[1769909361855,2.7398166,2451.1,2449.8,2.45152922]
[1769909362157,0.0041556,2451.1,2449.9,2.47446451]
[1769909362358,0.07107952,2451.0,2450.0,8.62746451]
[1769909362759,0.07107952,2450.9,2450.0,8.62746451]
[1769909362962,0.07107952,2450.9,2450.1,5.087]
[1769909363151,0.07107952,2450.8,2450.2,2.48295286]
[1769909363353,2.60669612,2450.9,2449.9,2.48295286]
[1769909363560,0.43717618,2451.0,2449.8,0.00305622]
[1769909363561,2.5356166,2450.4,2449.8,0.00305622]
[1769909363958,0.07107952,2450.2,2449.5,2.397]
[1769909364155,0.20424,2450.6,2449.6,2.48180073]
[1769909364654,0.20424,2450.6,2449.8,2.48180073]
[1769909365051,0.07107952,2450.5,2449.8,2.48497883]
[1769909365857,0.07107952,2450.2,2449.8,0.0031781]
[1769909366263,0.07107952,2450.1,2449.8,0.0031781]
[1769909366465,2.7398666,2450.5,2449.8,0.0031781]
[1769909366466,0.07107952,2450.2,2449.8,0.0031781]
[1769909366860,0.07107952,2450.1,2449.8,0.0031781]
[1769909367062,0.07107952,2450.2,2449.5,4.9815305]
[1769909367262,0.07107952,2450.4,2449.6,2.56751253]
[1769909367764,0.07107952,2450.3,2449.6,2.56751253]
[1769909368069,2.5356166,2450.3,2449.6,0.00285887]
[1769909368261,0.07107952,2449.9,2449.3,2.56751253]
[1769909368465,2.5356166,2450.0,2449.2,2.396]
[1769909368664,9.81797377,2452.7,2450.8,2.31399241]
[1769909368862,2.5356166,2452.3,2451.0,2.31399241]
[1769909369261,0.20409,2452.4,2451.0,2.31399241]
[1769909369262,2.5356166,2452.7,2451.0,2.31399241]
[1769909369461,2.5356166,2452.3,2451.1,8.90200877]
[1769909369768,2.5356166,2452.3,2451.2,0.63797305]
[1769909369769,2.53870574,2452.3,2451.2,0.63797305]
[1769909369964,2.53870574,2452.3,2451.3,0.63797305]
[1769909370160,2.53870574,2452.3,2451.4,0.63797305]
[1769909370361,2.53870574,2452.3,2451.5,0.63797305]
[1769909370563,2.5356166,2453.5,2451.7,2.38521637]
[1769909370764,2.5356166,2453.5,2451.9,2.38521637]
[1769909370967,2.7396366,2453.5,2452.1,2.38521637]
[1769909371168,2.7396366,2453.5,2452.3,2.40185894]
[1769909371364,2.7396366,2453.5,2452.5,2.40185894]
[1769909371564,2.74380343,2453.5,2452.5,2.40185894]
[1769909372365,2.74380343,2453.5,2452.2,2.41992801]
[1769909372566,2.74380343,2453.5,2452.3,0.60216327]
[1769909373165,2.74380343,2453.5,2452.2,2.41992801]
[1769909375372,2.74380343,2453.5,2452.3,2.395]
[1769909377070,2.74380343,2453.5,2452.3,5.00422846]
[1769909377575,0.20818683,2453.5,2452.4,2.60922846]
[1769909378970,3.21054872,2454.2,2452.4,2.60922846]
[1769909379365,2.77982376,2454.2,2452.4,2.60922846]
[1769909379970,0.20398,2454.0,2452.4,2.60922846]
[1769909380671,0.20398,2454.0,2452.4,2.81333846]
[1769909380868,2.98381376,2453.9,2452.4,2.81333846]
[1769909382073,2.77982376,2453.9,2452.4,2.60922846]
[1769909382268,0.20403,2453.5,2452.4,2.60922846]
[1769909382473,0.20405,2453.2,2452.4,8.67622846]
[1769909382768,3.0709546,2453.2,2452.4,6.067]
[1769909383173,0.204,2453.7,2452.5,2.67472885]
[1769909383569,3.0709046,2453.7,2452.5,2.67472885]
[1769909384270,0.204,2453.7,2452.5,2.67472885]
[1769909388173,0.20694984,2454.2,2452.7,2.76402921]
[1769909388475,3.07385444,2454.2,2452.7,2.76402921]
[1769909388778,0.20694984,2454.2,2453.1,2.76402921]
[1769909389080,0.20694984,2454.2,2453.1,2.76728243]
[1769909389979,0.00298984,2454.2,2453.1,2.76728243]
[1769909390179,0.00298984,2454.2,2453.1,6.87228243]
[1769909390376,0.20392,2454.7,2453.2,6.86902921]
[1769909390574,0.20392,2454.7,2453.4,2.76402921]
[1769909390781,0.20392,2454.7,2453.6,2.76402921]
[1769909391175,3.0708246,2454.7,2453.6,2.76402921]
[1769909391375,3.07396953,2454.7,2453.6,2.76402921]
[1769909391577,2.8669046,2454.6,2453.6,2.76402921]
[1769909391780,0.20395,2454.4,2453.6,2.76402921]
[1769909393183,0.20395,2454.4,2453.5,3.672]
[1769909393184,3.0708546,2454.3,2453.5,3.672]
[1769909393979,3.0708846,2454.0,2453.1,0.00325322]
[1769909394583,2.8669046,2453.6,2453.1,0.00325322]
[1769909394783,2.8669046,2453.6,2452.7,5.594]
[1769909394784,3.0708846,2454.0,2452.8,2.76402921]
[1769909394980,3.0708946,2453.9,2452.8,2.76402921]
[1769909395686,3.0708946,2453.9,2452.8,2.768333]
[1769909396686,3.0709246,2453.5,2452.8,0.00430379]
[1769909397086,0.20403,2453.4,2452.8,0.00430379]
[1769909397277,3.0709346,2453.4,2452.8,0.00430379]
[1769909397785,2.8669046,2453.2,2452.8,0.00430379]
[1769909397987,2.8669046,2453.2,2452.6,3.671]
[1769909398582,3.0709546,2453.2,2452.6,3.671]
[1769909398988,3.0709546,2453.2,2452.6,3.6746506]
[1769909400291,2.8669046,2452.7,2452.0,3.65099369]
[1769909400490,2.50363873,2454.6,2452.0,3.65099369]
[1769909400491,0.20404,2453.3,2452.2,2.76402921]
[1769909400786,0.20398,2454.0,2452.7,2.76402921]
[1769909400994,0.20398,2454.0,2452.9,2.76402921]
[1769909401188,0.20916698,2454.0,2453.1,2.76402921]
[1769909401589,1.6052488,2454.0,2453.0,4.08506489]
[1769909401787,0.20401,2453.6,2452.9,2.76704347]
[1769909402281,0.00518698,2454.0,2452.9,2.76704347]
[1769909402479,0.00518698,2454.0,2453.1,2.76402921]
[1769909403284,0.20916698,2454.0,2453.1,2.76402921]
[1769909403695,1.78387485,2453.7,2452.9,0.00301426]
[1769909404294,0.00518698,2454.0,2452.5,4.88436863]
[1769909404295,0.20404,2453.3,2452.5,2.76402921]
[1769909404689,0.20404,2453.3,2452.6,4.20334399]
[1769909404886,0.20404,2453.3,2452.6,2.76402921]
[1769909405289,0.20404,2453.3,2452.8,2.76402921]
[1769909405989,0.1933048,2453.3,2452.9,6.96606772]
[1769909406194,0.1933048,2453.3,2452.9,2.76402921]
[1769909406891,1.51300155,2453.8,2452.9,2.76402921]
[1769909407292,0.20404,2453.3,2452.9,2.76402921]
[1769909407495,0.20111475,2453.3,2452.9,2.76402921]
[1769909409091,0.204,2453.8,2452.9,2.76402921]
[1769909409288,0.204,2453.8,2453.0,7.23680079]
[1769909409489,1.23937321,2452.9,2452.3,3.64791893]
[1769909409795,0.20405,2453.2,2452.4,3.03345109]
[1769909410188,0.20405,2453.1,2452.4,3.03345109]
[1769909410595,0.20406,2453.0,2452.4,3.03701024]
[1769909410796,0.20407,2452.9,2452.4,3.03701024]
[1769909411194,1.2651922,2453.1,2452.4,0.00355915]
[1769909411393,0.20411,2452.4,2451.8,3.03345109]
[1769909411895,0.20418,2451.7,2451.0,3.03345109]
[1769909412292,0.20794284,2451.7,2451.0,3.03813135]
[1769909412494,0.20418,2451.6,2451.0,0.00468026]
[1769909412797,0.20421,2451.2,2450.4,3.03345109]
[1769909413492,0.20422,2451.1,2450.4,3.03345109]
[1769909413698,1.24006056,2451.1,2449.4,3.03345109]
[1769909413992,0.20422,2451.1,2449.4,3.03660608]
[1769909414201,0.20425,2450.8,2449.4,3.03660608]
[1769909415596,0.20432,2450.0,2448.0,2.50363873]
[1769909415793,0.20432,2450.0,2448.5,2.393]
[1769909416595,0.20432,2449.9,2448.5,2.393]
[1769909416794,0.20935013,2449.9,2448.5,2.39809225]
[1769909416995,0.20435,2449.5,2448.5,2.39809225]
[1769909417200,0.20436,2449.4,2448.5,2.39809225]
[1769909417402,4.84148389,2451.5,2449.3,2.50363873]
[1769909417598,0.20415,2452.0,2450.3,3.03345109]
[1769909417801,0.20415,2452.0,2450.5,3.03345109]
[1769909418003,0.40076391,2452.5,2450.5,3.03345109]
[1769909418198,0.2041,2452.6,2450.5,3.03345109]
[1769909418504,0.20719021,2452.6,2450.9,3.03345109]
[1769909420101,0.20719021,2452.6,2451.1,3.03345109]
[1769909423203,1.91270133,2452.6,2451.1,3.03345109]
[1769909423604,0.20418,2451.6,2450.8,3.03345109]
[1769909423905,0.20412,2452.3,2450.8,3.03345109]
[1769909425101,1.90445598,2452.3,2450.8,3.03345109]
[1769909425605,0.20417,2451.7,2450.8,3.03345109]
[1769909428103,1.69487203,2451.7,2450.5,3.03642172]
[1769909428805,0.20422,2451.2,2450.5,3.03642172]
[1769909429604,0.20422,2451.1,2450.5,0.00297063]
[1769909430009,1.68353134,2451.3,2450.3,3.673]
[1769909430602,1.65246157,2451.6,2450.4,3.03345109]
[1769909430806,0.2042,2451.3,2450.4,3.03345109]
[1769909431009,0.2042,2451.3,2450.4,3.03806354]
[1769909432699,3.674,2451.8,2450.4,3.03806354]
[1769909432909,3.87816,2451.8,2450.4,3.03806354]
[1769909433306,0.20416,2451.8,2450.4,3.03806354]
[1769909433506,0.20417,2451.7,2450.4,3.03806354]
[1769909433706,0.20418,2451.6,2450.4,3.03806354]
[1769909434807,1.60304355,2452.0,2450.4,3.03806354]
[1769909435109,0.20417,2451.7,2450.4,3.03806354]
[1769909435902,0.20414,2452.1,2450.4,7.14306354]
[1769909436109,1.60551504,2451.9,2450.8,3.03345109]
[1769909436304,0.2042,2451.4,2450.5,3.03345109]
[1769909437210,0.20415,2451.9,2450.5,3.03345109]
[1769909437408,0.20412,2452.4,2450.7,2.62978519]
[1769909437609,0.00309021,2452.6,2450.9,2.62978519]
[1769909437610,0.20412,2452.3,2450.9,2.62978519]
[1769909438108,0.20413,2452.2,2450.9,2.62978519]
[1769909438418,0.20413,2452.2,2451.0,2.62978519]
[1769909438609,1.56226668,2451.9,2450.6,2.62978519]
[1769909439815,0.20414,2452.1,2450.8,2.62978519]
[1769909440611,1.56449401,2452.0,2450.8,2.62978519]
[1769909441210,0.20419,2451.5,2450.8,2.62978519]
[1769909441416,1.55681663,2451.9,2450.8,2.62978519]
[1769909441612,1.55681663,2451.7,2450.5,2.62978519]
[1769909442412,0.20423,2451.0,2450.5,2.62978519]
[1769909442805,1.5444299,2450.9,2449.6,2.60121712]
[1769909443010,0.2043,2450.2,2449.6,2.60121712]
[1769909443806,0.20431,2450.1,2449.6,2.60121712]
[1769909444018,0.20431,2450.1,2449.6,2.60547592]
[1769909444617,0.20431,2450.1,2449.3,2.60121712]
[1769909445314,0.20431,2450.0,2449.3,2.60121712]
[1769909445718,0.20431,2450.0,2449.3,2.60540157]
[1769909446611,0.20432,2449.9,2449.3,2.60540157]
[1769909447414,15.07827066,2451.1,2449.3,2.60540157]
[1769909447611,0.20428,2450.4,2449.3,2.60540157]
[1769909447812,1.70122411,2450.5,2449.3,2.60540157]
[1769909448109,0.20432,2450.0,2449.3,2.60540157]
[1769909448307,0.20119091,2450.0,2449.3,2.60540157]
[1769909448506,0.2058502,2450.0,2449.3,2.60540157]
[1769909449614,0.20426,2450.7,2449.3,2.60540157]
[1769909450014,0.20426,2450.6,2449.3,2.60540157]
[1769909450316,0.20428,2450.4,2449.3,2.60540157]
[1769909450518,0.20941242,2450.4,2449.3,2.60540157]
[1769909450814,0.00513242,2450.4,2449.3,2.60540157]
[1769909452216,0.2043,2450.2,2449.3,2.60540157]
[1769909454514,10.18,2451.2,2449.5,2.60121712]
[1769909454711,0.20426,2450.6,2449.5,2.60121712]
[1769909455520,0.20718365,2450.6,2449.5,2.60121712]
[1769909455722,0.00292365,2450.6,2449.5,2.60121712]
[1769909455917,0.20429,2450.3,2449.5,2.60121712]
[1769909456516,0.20433,2449.8,2449.3,2.60540157]
[1769909457821,0.20434,2449.7,2449.3,2.60540157]
[1769909458617,0.20435,2449.5,2448.5,10.765]
[1769909459019,0.20435,2449.5,2448.5,14.47732965]
[1769909459219,2.69576647,2449.8,2448.5,10.765]
[1769909459424,0.20438,2449.3,2448.5,10.765]
[1769909459625,0.20438,2449.3,2448.5,10.77028862]
[1769909460325,0.20433,2449.8,2448.5,14.87528862]
[1769909460525,0.20434,2449.7,2448.5,17.30778856]
[1769909460719,2.69576647,2450.5,2448.8,2.60121712]
[1769909460919,0.20431,2450.0,2448.8,2.60121712]
[1769909461520,0.20432,2449.9,2448.8,2.60121712]
[1769909462330,2.69576647,2450.1,2448.8,2.60121712]
[1769909463225,0.20437,2449.4,2448.8,2.60121712]
[1769909463529,0.20441,2448.9,2448.5,13.37150574]
[1769909463929,2.69576647,2449.2,2448.5,0.00528862]
[1769909464126,0.20442,2448.7,2448.2,2.60121712]
[1769909464526,0.20442,2448.7,2447.6,2.60121712]
[1769909464923,0.20444,2448.5,2447.6,2.60121712]
[1769909465129,0.20446,2448.2,2447.6,2.6063232]
[1769909465324,0.00434099,2448.5,2447.6,2.6063232]
[1769909465531,0.20445,2448.4,2447.6,2.6063232]
[1769909466528,0.20446,2448.3,2447.6,2.6063232]
[1769909466930,0.20447,2448.2,2447.6,2.6063232]
[1769909467132,0.20447,2448.2,2447.6,0.00510608]
[1769909467333,0.20447,2448.1,2447.6,0.00510608]
[1769909467832,0.20448,2448.0,2447.3,2.59873997]
[1769909468833,0.20448,2448.0,2447.3,2.6020547]
[1769909469138,0.00434099,2448.5,2447.3,2.6020547]
[1769909469337,0.20878099,2448.5,2447.3,2.6020547]
[1769909469834,0.20447,2448.1,2447.3,2.6020547]
[1769909470033,2.56871106,2448.4,2447.3,2.6020547]
[1769909470434,2.56871106,2448.4,2447.3,0.00331473]
[1769909471231,0.00434099,2448.5,2447.3,2.6020547]
[1769909471631,2.57305205,2448.5,2447.3,2.6020547]
[1769909471940,0.00434099,2448.5,2447.3,2.6020547]
[1769909472535,0.20446,2448.3,2447.3,2.6020547]
[1769909472731,13.37704655,2450.1,2447.9,2.59873997]
[1769909472944,2.56871106,2450.3,2448.2,2.59873997]
[1769909473138,0.20433,2449.8,2448.3,2.59873997]
[1769909473739,0.20730225,2449.8,2448.3,2.59873997]
[1769909474539,0.00297225,2449.8,2448.3,2.59873997]
[1769909474943,2.56871106,2449.6,2448.3,2.59873997]
[1769909475140,0.20439,2449.1,2448.3,2.59873997]
[1769909476344,2.56871106,2449.6,2448.0,2.59873997]
[1769909476544,0.2044,2449.0,2448.0,2.59873997]
[1769909478447,2.56871106,2449.5,2448.0,2.59873997]
[1769909478642,2.77306106,2449.5,2448.0,2.59873997]
[1769909478942,0.20436,2449.4,2448.0,2.59873997]
[1769909479847,0.20437,2449.3,2448.0,2.59873997]
[1769909480851,0.20437,2449.3,2448.0,5.02604203]
[1769909481048,0.20437,2449.3,2448.1,2.59873997]
[1769909481245,2.57168331,2449.8,2448.1,5.02604203]
[1769909481445,2.57168331,2449.8,2448.2,2.59873997]
[1769909481644,0.20438,2449.3,2448.2,2.59873997]
[1769909482139,2.57168331,2449.8,2448.2,2.59873997]
[1769909482341,0.20730225,2449.8,2448.5,2.59873997]
[1769909482543,6.09468938,2451.7,2449.5,2.59873997]
[1769909482851,0.20416,2451.8,2450.3,2.59873997]
[1769909483152,0.20416,2451.8,2450.5,2.59873997]
[1769909483348,0.36534738,2452.2,2450.7,2.59873997]
[1769909483546,0.00426177,2452.2,2450.8,2.59873997]
[1769909484853,0.20415,2452.0,2450.8,2.59873997]
[1769909485852,2.77286106,2452.0,2450.8,2.59873997]
[1769909486052,2.56871106,2451.9,2450.8,2.59873997]
[1769909487142,0.20417,2451.7,2450.8,2.59873997]
[1769909490456,2.77288106,2451.7,2450.8,2.59873997]
[1769909490850,0.20421,2451.3,2450.7,0.00339416]
[1769909491050,0.20421,2451.3,2450.7,2.60213413]
[1769909491452,2.56871106,2451.9,2450.7,2.60213413]
[1769909492250,0.20421,2451.3,2450.7,2.60213413]
[1769909493152,2.77286106,2451.9,2450.7,2.60213413]
[1769909494054,0.20415,2451.9,2450.7,2.60213413]
[1769909495252,0.20418,2451.6,2450.7,2.60213413]
[1769909498059,1.83574513,2451.9,2450.7,2.60213413]
[1769909498457,1.83574513,2451.5,2450.7,2.60213413]
[1769909498657,0.20421,2451.3,2450.7,0.00339416]
[1769909499958,0.20423,2451.1,2450.7,0.00339416]
[1769909500461,2.03997513,2451.1,2450.7,0.00339416]
[1769909500661,2.03997513,2451.1,2450.1,1.94285943]
[1769909500662,0.20424,2450.8,2450.1,1.94285943]
[1769909500862,0.20424,2450.8,2449.8,1.94285943]
[1769909501755,0.20424,2450.8,2449.8,1.94727242]
[1769909503763,1.81750216,2451.0,2449.8,1.94727242]
[1769909505370,0.20426,2450.6,2449.8,1.94727242]
[1769909506072,1.81750216,2451.8,2449.8,1.94727242]
[1769909506273,0.20423,2451.0,2449.8,1.94727242]
[1769909507269,0.20424,2450.9,2449.8,1.94727242]
[1769909507475,0.20425,2450.8,2449.8,1.94727242]
[1769909507677,0.20425,2450.7,2449.8,1.94727242]
[1769909507868,2.02175216,2450.7,2449.8,1.94727242]
[1769909508879,1.81750216,2450.5,2449.8,0.00441299]
[1769909509077,2.02180216,2450.2,2449.5,7.81886599]
[1769909509878,0.2043,2450.2,2449.5,7.81886599]
[1769909510072,0.20925777,2450.2,2449.5,7.8241461]
[1769909511079,0.20431,2450.0,2449.5,6.07528011]
[1769909513878,0.20431,2450.0,2449.5,0.00528011]
[1769909514880,0.20431,2450.0,2449.5,1.7541461]
[1769909516873,0.00495777,2450.2,2449.5,1.1e-07]
[1769909516874,2.02184216,2449.7,2449.5,1.1e-07]
[1769909517078,2.02184216,2449.7,2449.0,5.58786599]
[1769909517581,0.20434,2449.7,2449.0,5.58786599]
[1769909518080,0.20434,2449.7,2449.0,5.5912189]
[1769909518684,0.20435,2449.5,2449.0,1.7522189]
[1769909518881,0.20438,2449.2,2448.8,3.676]
[1769909519984,0.20438,2449.2,2448.8,3.68057424]
[1769909520985,1.81750216,2449.8,2448.9,1.74886599]
[1769909521878,0.20435,2449.5,2448.9,1.74886599]
[1769909523277,0.20435,2449.5,2448.9,8.21586599]
[1769909523678,0.20435,2449.5,2448.9,1.74886599]
[1769909527294,0.20438,2449.2,2448.6,1.458447]
[1769909527488,0.20438,2449.2,2448.5,6.737]
[1769909527893,0.2044,2449.0,2448.3,1.458447]
[1769909528296,0.2044,2449.0,2448.3,1.46277618]
[1769909529993,1.67785875,2449.0,2448.3,0.00432918]
[1769909530297,0.2044,2449.0,2448.3,1.46277618]
[1769909531691,1.67786875,2448.9,2448.3,0.00432918]
[1769909532189,1.47345875,2448.9,2448.3,0.00432918]
[1769909532394,1.67786875,2448.8,2448.3,0.00432918]
[1769909532595,1.67786875,2448.8,2448.0,7.441447]
[1769909533398,1.67787875,2448.7,2448.0,5.983]
[1769909533698,1.67787875,2448.7,2448.0,5.98655432]
[1769909534093,1.47345875,2448.5,2448.0,5.98655432]
[1769909534994,1.67789875,2448.5,2448.0,5.98655432]
[1769909535395,0.20445,2448.4,2447.6,1.458447]
[1769909536196,1.67790875,2448.4,2447.6,1.458447]
[1769909536396,1.67790875,2448.4,2447.6,1.46193389]
[1769909536397,1.68278755,2448.4,2447.6,1.46193389]
[1769909536696,1.67792875,2448.2,2447.6,0.00348689]
[1769909537094,0.0048788,2448.4,2447.1,5.877]
[1769909537095,1.47345875,2448.0,2447.1,5.877]
[1769909537800,0.20451,2447.6,2446.8,5.686]
[1769909537994,0.20451,2447.6,2446.8,5.69049634]
[1769909538698,1.67796875,2447.6,2446.8,5.69049634]
[1769909539099,1.47345875,2447.6,2446.8,0.00449634]
[1769909539293,0.0048788,2448.4,2446.8,0.00449634]
[1769909539294,1.67799875,2447.3,2446.8,0.00449634]
[1769909539495,1.47345875,2447.9,2446.8,1.46294334]
[1769909540896,0.0048788,2448.4,2446.8,0.00449634]
[1769909540897,1.67799875,2447.3,2446.8,0.00449634]
[1769909541702,0.20455,2447.2,2446.7,3.678]
[1769909541897,1.47345875,2447.1,2446.7,2.87407239]
[1769909542095,1.47345875,2447.1,2446.7,2.01724239]
[1769909542296,1.47345875,2447.1,2446.7,9.26e-06]
[1769909542496,1.47345875,2447.1,2446.3,4.696]
[1769909542698,1.83610091,2447.1,2446.3,4.69991677]
[1769909542901,0.20457,2446.9,2446.3,0.00391677]
[1769909543297,1.47345875,2446.9,2445.4,1.458447]
[1769909543493,0.20463,2446.2,2445.4,1.458447]
[1769909543992,1.47345875,2446.8,2445.4,1.458447]
[1769909544195,1.47653784,2446.8,2445.4,1.458447]
[1769909544400,0.20463,2446.2,2445.4,1.46212817]
[1769909544801,0.20464,2446.1,2445.4,1.46212817]
[1769909546399,1.67809875,2446.1,2445.4,0.00368117]
[1769909546598,0.20465,2446.0,2445.4,0.00368117]
[1769909546804,1.67812875,2445.7,2445.4,0.00368117]
[1769909546998,1.67812875,2445.7,2445.0,2.398]
[1769909547402,0.20468,2445.6,2445.0,2.398]
[1769909547697,0.20469,2445.5,2444.8,1.458447]
[1769909547902,0.20469,2445.5,2444.8,0.00488832]
[1769909548801,1.67818875,2445.1,2444.8,8.32e-06]
[1769909549000,0.20469,2445.5,2444.3,1.458447]
[1769909549200,0.2047,2445.4,2444.3,1.458447]
[1769909549405,0.20472,2445.2,2444.3,1.458447]
[1769909550004,0.20472,2445.2,2444.3,1.46330579]
[1769909550305,0.20473,2445.0,2444.3,0.00485879]
[1769909550504,0.20475,2444.8,2444.3,0.00485879]
[1769909550706,1.67820875,2444.8,2444.3,0.00485879]
[1769909551006,1.67821875,2444.7,2444.3,0.00485879]
[1769909551399,1.67821875,2444.7,2444.1,3.68]
[1769909551802,1.67822875,2444.5,2444.1,3.68]
[1769909552002,0.20477,2444.5,2444.2,1.458447]
[1769909552202,0.20477,2444.5,2444.1,3.68]
[1769909552406,0.20477,2444.5,2444.1,3.68377511]
[1769909553105,0.00492601,2445.0,2444.2,1.458447]
[1769909553601,0.20468,2445.6,2444.2,1.458447]
[1769909554504,0.20921738,2445.6,2444.2,1.458447]
[1769909555306,0.20469,2445.5,2444.2,1.458447]
[1769909555907,1.67814875,2445.5,2444.2,1.458447]
[1769909556111,1.47345875,2445.5,2444.2,1.458447]
[1769909556311,0.20474,2444.9,2444.2,1.458447]
[1769909556508,0.20473,2445.0,2444.1,1.46222211]
[1769909557509,0.20474,2444.9,2444.1,1.46222211]